[Event "Early-Titled-Tuesday-Blitz-February-20-2024"]
[Site "Chess.com"]
[Date "2024.02.20"]
[Round "3"]
[White "snowlord"]
[Black "Tocras"]
[Result "0-1"]
[WhiteElo "2892"]
[BlackElo "2711"]
[TimeControl "180+1"]
[EndTime "8:27:51 PST"]
[Termination "Tocras won by resignation"]

1. d4 {[%clk 0:02:50.2]} 1... Nf6 {[%clk 0:02:59]} 2. c4 {[%clk 0:02:49.4]} 2...
b6 {[%clk 0:02:56.6]} 3. f3 {[%clk 0:02:48.3]} 3... Nc6 {[%clk 0:02:50.5]} 4.
Nc3 {[%clk 0:02:48.2]} 4... d5 {[%clk 0:02:50.2]} 5. cxd5 {[%clk 0:02:47]} 5...
Nxd5 {[%clk 0:02:50.6]} 6. Qa4 {[%clk 0:02:46]} 6... Bb7 {[%clk 0:02:38.2]} 7.
e4 {[%clk 0:02:30.9]} 7... Nxc3 {[%clk 0:02:35.8]} 8. bxc3 {[%clk 0:02:31.5]}
8... Qd7 {[%clk 0:02:30.8]} 9. d5 {[%clk 0:01:54.4]} 9... Na5 {[%clk 0:02:25.9]}
10. Qd4 {[%clk 0:01:30.3]} 10... O-O-O {[%clk 0:02:14.4]} 11. Rb1 {[%clk
0:01:12.9]} 11... e6 {[%clk 0:02:06.8]} 12. Bb5 {[%clk 0:01:10.9]} 12... Qd6
{[%clk 0:01:50]} 13. c4 {[%clk 0:00:51.5]} 13... c6 {[%clk 0:01:42.7]} 14. Ba4
{[%clk 0:00:50.8]} 14... cxd5 {[%clk 0:01:36.1]} 15. cxd5 {[%clk 0:00:50.4]}
15... exd5 {[%clk 0:01:35.8]} 16. Ne2 {[%clk 0:00:47.1]} 16... dxe4 {[%clk
0:01:29.5]} 17. Qc3+ {[%clk 0:00:35.9]} 17... Qc5 {[%clk 0:01:23.5]} 18. Bf4
{[%clk 0:00:29.9]} 18... exf3 {[%clk 0:00:46.9]} 19. gxf3 {[%clk 0:00:30.8]}
19... Qxc3+ {[%clk 0:00:40.6]} 20. Nxc3 {[%clk 0:00:31.6]} 20... Bxf3 {[%clk
0:00:36.5]} 21. Rf1 {[%clk 0:00:31.5]} 21... Bc6 {[%clk 0:00:36.6]} 22. Bg3
{[%clk 0:00:10.2]} 22... f6 {[%clk 0:00:34.8]} 23. Bxc6 {[%clk 0:00:08.6]} 23...
Nxc6 {[%clk 0:00:34.2]} 24. Kf2 {[%clk 0:00:08.8]} 24... Bc5+ {[%clk 0:00:33.1]}
25. Kf3 {[%clk 0:00:08.7]} 25... Rd3+ {[%clk 0:00:32.5]} 0-1

[Event "Early-Titled-Tuesday-Blitz-February-20-2024"]
[Site "Chess.com"]
[Date "2024.02.20"]
[Round "3"]
[White "fabianvivasz"]
[Black "Casablanca"]
[Result "0-1"]
[WhiteElo "2377"]
[BlackElo "2609"]
[TimeControl "180+1"]
[EndTime "8:27:51 PST"]
[Termination "Casablanca won by checkmate"]

1. e4 {[%clk 0:02:50.3]} 1... c5 {[%clk 0:02:59.9]} 2. Nf3 {[%clk 0:02:49.7]}
2... d6 {[%clk 0:03:00.5]} 3. d4 {[%clk 0:02:50]} 3... cxd4 {[%clk 0:03:01.4]}
4. Nxd4 {[%clk 0:02:50.7]} 4... Nf6 {[%clk 0:03:02.1]} 5. Nc3 {[%clk 0:02:51.4]}
5... g6 {[%clk 0:03:02.8]} 6. Be3 {[%clk 0:02:51.1]} 6... Bg7 {[%clk 0:03:03.5]}
7. f3 {[%clk 0:02:51]} 7... O-O {[%clk 0:03:04.3]} 8. Qd2 {[%clk 0:02:51.6]}
8... Nc6 {[%clk 0:03:04.3]} 9. O-O-O {[%clk 0:02:52.2]} 9... d5 {[%clk 0:03:05]}
10. Nxc6 {[%clk 0:02:47.9]} 10... bxc6 {[%clk 0:03:04.8]} 11. Bc4 {[%clk
0:02:48.6]} 11... e6 {[%clk 0:02:57]} 12. Bb3 {[%clk 0:02:48.2]} 12... Qa5
{[%clk 0:02:48.4]} 13. Kb1 {[%clk 0:02:38.8]} 13... Qc7 {[%clk 0:02:15.1]} 14.
h4 {[%clk 0:02:13.2]} 14... h5 {[%clk 0:02:13.9]} 15. g4 {[%clk 0:01:59]} 15...
hxg4 {[%clk 0:02:10.3]} 16. h5 {[%clk 0:01:54.9]} 16... Rd8 {[%clk 0:02:01.7]}
17. h6 {[%clk 0:01:42.1]} 17... Bf8 {[%clk 0:01:49]} 18. h7+ {[%clk 0:01:19.6]}
18... Kh8 {[%clk 0:01:49.3]} 19. exd5 {[%clk 0:00:44.3]} 19... cxd5 {[%clk
0:01:12.2]} 20. Bg5 {[%clk 0:00:03.2]} 20... Bg7 {[%clk 0:01:10.7]} 21. fxg4
{[%clk 0:00:03.7]} 21... d4 {[%clk 0:01:04.8]} 22. Nb5 {[%clk 0:00:02.1]} 22...
Qe5 {[%clk 0:00:53.6]} 23. Rdf1 {[%clk 0:00:02.5]} 23... Ba6 {[%clk 0:00:50.9]}
24. a4 {[%clk 0:00:02.1]} 24... Ne4 {[%clk 0:00:47.5]} 25. Qe1 {[%clk
0:00:01.5]} 25... Nxg5 {[%clk 0:00:44.2]} 26. Qh4 {[%clk 0:00:01.2]} 26... Bxb5
{[%clk 0:00:41.8]} 27. axb5 {[%clk 0:00:01.3]} 27... d3 {[%clk 0:00:40.2]} 28.
cxd3 {[%clk 0:00:01.2]} 28... Qxb2# {[%clk 0:00:40.1]} 0-1

[Event "Early-Titled-Tuesday-Blitz-February-20-2024"]
[Site "Chess.com"]
[Date "2024.02.20"]
[Round "3"]
[White "arenal72"]
[Black "maciek_92"]
[Result "0-1"]
[WhiteElo "2571"]
[BlackElo "2809"]
[TimeControl "180+1"]
[EndTime "8:27:52 PST"]
[Termination "maciek_92 won by resignation"]

1. Nf3 {[%clk 0:03:00.9]} 1... d5 {[%clk 0:02:59.6]} 2. g3 {[%clk 0:03:01.2]}
2... Bg4 {[%clk 0:02:58.7]} 3. Bg2 {[%clk 0:03:00.4]} 3... Nd7 {[%clk
0:02:59.4]} 4. d4 {[%clk 0:02:57.2]} 4... Ngf6 {[%clk 0:02:57.8]} 5. O-O {[%clk
0:02:56.7]} 5... c5 {[%clk 0:02:58.3]} 6. dxc5 {[%clk 0:02:28.6]} 6... e6 {[%clk
0:02:52.6]} 7. b4 {[%clk 0:02:16.8]} 7... a5 {[%clk 0:02:51.8]} 8. c3 {[%clk
0:02:15.4]} 8... Be7 {[%clk 0:02:46.6]} 9. Nbd2 {[%clk 0:02:05.5]} 9... O-O
{[%clk 0:02:44.7]} 10. a3 {[%clk 0:01:58.3]} 10... Qc8 {[%clk 0:02:40.5]} 11.
Bb2 {[%clk 0:01:55]} 11... b6 {[%clk 0:02:40.5]} 12. cxb6 {[%clk 0:01:43]} 12...
Nxb6 {[%clk 0:02:39.9]} 13. Ne5 {[%clk 0:01:36.1]} 13... Bh5 {[%clk 0:02:37.6]}
14. c4 {[%clk 0:01:31.8]} 14... axb4 {[%clk 0:02:37.2]} 15. axb4 {[%clk
0:01:26.5]} 15... Rxa1 {[%clk 0:02:36.6]} 16. Bxa1 {[%clk 0:01:22]} 16... Bxb4
{[%clk 0:02:34.4]} 17. cxd5 {[%clk 0:01:22.2]} 17... Nbxd5 {[%clk 0:02:33.4]}
18. Ne4 {[%clk 0:01:19.8]} 18... Rd8 {[%clk 0:02:25.2]} 19. Nxf6+ {[%clk
0:00:49.3]} 19... Nxf6 {[%clk 0:02:24.9]} 20. Nd3 {[%clk 0:00:35]} 20... Be7
{[%clk 0:02:16]} 21. Qd2 {[%clk 0:00:33.2]} 21... Bg6 {[%clk 0:02:12.4]} 22. Qe3
{[%clk 0:00:29.9]} 22... Nd5 {[%clk 0:02:09.6]} 23. Qc1 {[%clk 0:00:24.3]} 23...
Qa6 {[%clk 0:02:05.7]} 24. Ne5 {[%clk 0:00:23.2]} 24... Rc8 {[%clk 0:01:34.1]}
25. Qb2 {[%clk 0:00:16.5]} 25... Nc3 {[%clk 0:01:29.5]} 26. Qxc3 {[%clk
0:00:07.8]} 26... Rxc3 {[%clk 0:01:28.6]} 27. Bxc3 {[%clk 0:00:08.7]} 27... Qxe2
{[%clk 0:01:28.1]} 28. Ra1 {[%clk 0:00:07]} 28... Be4 {[%clk 0:01:22.4]} 29. Bf1
{[%clk 0:00:04.4]} 29... Qc2 {[%clk 0:01:20.5]} 30. Bd4 {[%clk 0:00:03.9]} 30...
f6 {[%clk 0:01:19.7]} 31. Nc4 {[%clk 0:00:03.7]} 31... e5 {[%clk 0:01:18.6]} 32.
Ne3 {[%clk 0:00:03.2]} 32... Qc6 {[%clk 0:01:17.6]} 33. Ra7 {[%clk 0:00:02.2]}
33... exd4 {[%clk 0:01:15.6]} 34. Rxe7 {[%clk 0:00:02.6]} 34... dxe3 {[%clk
0:01:15.8]} 35. fxe3 {[%clk 0:00:03.2]} 35... h5 {[%clk 0:01:15.8]} 36. h4
{[%clk 0:00:02.7]} 36... f5 {[%clk 0:01:15.7]} 37. Re5 {[%clk 0:00:01.3]} 37...
Qd6 {[%clk 0:01:14.2]} 38. Bc4+ {[%clk 0:00:01.1]} 38... Kh7 {[%clk 0:01:14.3]}
39. Re8 {[%clk 0:00:01.3]} 39... Qxg3+ {[%clk 0:01:14.1]} 40. Kf1 {[%clk
0:00:02.2]} 40... Qf3+ {[%clk 0:01:14.6]} 41. Ke1 {[%clk 0:00:02.8]} 41... Qxe3+
{[%clk 0:01:15.5]} 42. Kd1 {[%clk 0:00:03]} 42... Bf3+ {[%clk 0:01:16]} 43. Kc2
{[%clk 0:00:03.5]} 43... Qxe8 {[%clk 0:01:16.7]} 0-1

[Event "Early-Titled-Tuesday-Blitz-February-20-2024"]
[Site "Chess.com"]
[Date "2024.02.20"]
[Round "3"]
[White "Chessdreamer2001"]
[Black "Kobalia"]
[Result "0-1"]
[WhiteElo "2485"]
[BlackElo "2791"]
[TimeControl "180+1"]
[EndTime "8:27:53 PST"]
[Termination "Kobalia won by resignation"]

1. e4 {[%clk 0:03:00.9]} 1... c5 {[%clk 0:03:00]} 2. Nf3 {[%clk 0:02:59.1]} 2...
e6 {[%clk 0:03:00.3]} 3. d4 {[%clk 0:02:58.8]} 3... cxd4 {[%clk 0:03:00.6]} 4.
Nxd4 {[%clk 0:02:59.7]} 4... Nc6 {[%clk 0:03:01]} 5. Nc3 {[%clk 0:02:59.3]} 5...
a6 {[%clk 0:03:01.3]} 6. Be2 {[%clk 0:02:59.2]} 6... d6 {[%clk 0:03:00.9]} 7.
O-O {[%clk 0:02:58.3]} 7... Bd7 {[%clk 0:03:01.2]} 8. Be3 {[%clk 0:02:47.2]}
8... Nf6 {[%clk 0:03:00.7]} 9. f4 {[%clk 0:02:43]} 9... Nxd4 {[%clk 0:02:58.1]}
10. Bxd4 {[%clk 0:02:42.6]} 10... Bc6 {[%clk 0:02:58.3]} 11. Bd3 {[%clk
0:02:40.2]} 11... Be7 {[%clk 0:02:57.5]} 12. Qe1 {[%clk 0:02:36]} 12... O-O
{[%clk 0:02:56.6]} 13. Rd1 {[%clk 0:02:35.2]} 13... b5 {[%clk 0:02:52.1]} 14. a3
{[%clk 0:02:33.6]} 14... Qb8 {[%clk 0:02:52.1]} 15. Qg3 {[%clk 0:02:32.1]} 15...
a5 {[%clk 0:02:51.5]} 16. e5 {[%clk 0:02:15.5]} 16... dxe5 {[%clk 0:02:49.6]}
17. fxe5 {[%clk 0:02:09.2]} 17... Nh5 {[%clk 0:02:32.2]} 18. Qh3 {[%clk
0:02:02.8]} 18... g6 {[%clk 0:02:32.1]} 19. Ne4 {[%clk 0:01:52.5]} 19... Rd8
{[%clk 0:02:08.3]} 20. Rxf7 {[%clk 0:01:43.9]} 20... Kxf7 {[%clk 0:01:27.3]} 21.
Rf1+ {[%clk 0:01:43.5]} 21... Kg7 {[%clk 0:01:27.4]} 22. Qxe6 {[%clk 0:01:39.2]}
22... Rxd4 {[%clk 0:01:26.3]} 23. Qxe7+ {[%clk 0:01:30.3]} 23... Kh8 {[%clk
0:01:25.9]} 24. Ng5 {[%clk 0:01:09.8]} 24... Rd7 {[%clk 0:01:14.9]} 25. Qe6
{[%clk 0:01:01.9]} 25... Qa7+ {[%clk 0:00:50.7]} 26. Kh1 {[%clk 0:00:58.5]}
26... Bd5 {[%clk 0:00:50.5]} 27. Qg4 {[%clk 0:00:41.2]} 27... Re7 {[%clk
0:00:42.6]} 28. e6 {[%clk 0:00:37.3]} 28... Qe3 {[%clk 0:00:38.6]} 29. Nxh7
{[%clk 0:00:26.3]} 29... Rxh7 {[%clk 0:00:34.3]} 0-1

[Event "Early-Titled-Tuesday-Blitz-February-20-2024"]
[Site "Chess.com"]
[Date "2024.02.20"]
[Round "3"]
[White "SirStrateg"]
[Black "WiseKing_08"]
[Result "1-0"]
[WhiteElo "2651"]
[BlackElo "2439"]
[TimeControl "180+1"]
[EndTime "8:27:53 PST"]
[Termination "SirStrateg won on time"]

1. d4 {[%clk 0:03:00.9]} 1... d5 {[%clk 0:02:59.8]} 2. Bf4 {[%clk 0:03:01.2]}
2... c5 {[%clk 0:02:59.8]} 3. e3 {[%clk 0:03:01.5]} 3... cxd4 {[%clk 0:02:59.8]}
4. exd4 {[%clk 0:03:01.7]} 4... Nc6 {[%clk 0:03:00.7]} 5. c3 {[%clk 0:03:02.1]}
5... Bf5 {[%clk 0:03:00.1]} 6. Nd2 {[%clk 0:03:01]} 6... e6 {[%clk 0:02:59.9]}
7. Ngf3 {[%clk 0:03:00.4]} 7... Bd6 {[%clk 0:02:59.4]} 8. Bg3 {[%clk 0:02:56.9]}
8... Nf6 {[%clk 0:02:56.4]} 9. Qb3 {[%clk 0:02:57.3]} 9... Qc7 {[%clk
0:02:39.7]} 10. a4 {[%clk 0:02:54.5]} 10... O-O {[%clk 0:02:32.5]} 11. Be2
{[%clk 0:02:54.5]} 11... Ne4 {[%clk 0:02:26.1]} 12. Nxe4 {[%clk 0:02:44.5]}
12... Bxe4 {[%clk 0:02:27]} 13. O-O {[%clk 0:02:42.7]} 13... Na5 {[%clk
0:01:54.6]} 14. Qa2 {[%clk 0:02:39.7]} 14... Rac8 {[%clk 0:01:48.4]} 15. Nd2
{[%clk 0:02:38.6]} 15... Bf5 {[%clk 0:01:38.4]} 16. b4 {[%clk 0:02:33]} 16...
Nc6 {[%clk 0:01:34.2]} 17. Nb3 {[%clk 0:02:31.8]} 17... b6 {[%clk 0:01:14.9]}
18. Ba6 {[%clk 0:02:31.7]} 18... Rcd8 {[%clk 0:01:05.9]} 19. Rac1 {[%clk
0:02:31.6]} 19... h5 {[%clk 0:01:01.8]} 20. Rfe1 {[%clk 0:02:11.9]} 20... h4
{[%clk 0:00:56.7]} 21. Bxd6 {[%clk 0:02:12]} 21... Qxd6 {[%clk 0:00:51.1]} 22.
Re3 {[%clk 0:02:11.2]} 22... h3 {[%clk 0:00:51.1]} 23. g3 {[%clk 0:02:10.9]}
23... Nb8 {[%clk 0:00:43]} 24. Bb5 {[%clk 0:02:09.6]} 24... a6 {[%clk
0:00:41.6]} 25. Bf1 {[%clk 0:02:09.3]} 25... Nd7 {[%clk 0:00:42]} 26. Bxa6
{[%clk 0:02:07.4]} 26... Nf6 {[%clk 0:00:42.4]} 27. f3 {[%clk 0:02:02.2]} 27...
Nh5 {[%clk 0:00:32.3]} 28. Qf2 {[%clk 0:01:50.5]} 28... Bg6 {[%clk 0:00:29.6]}
29. Bf1 {[%clk 0:01:43]} 29... f5 {[%clk 0:00:09.2]} 30. f4 {[%clk 0:01:39.7]}
30... Rde8 {[%clk 0:00:09.9]} 31. Bxh3 {[%clk 0:01:34.5]} 31... Nf6 {[%clk
0:00:10.6]} 32. Nd2 {[%clk 0:01:34.4]} 32... Qc6 {[%clk 0:00:09.5]} 33. Ra1
{[%clk 0:01:34]} 33... Ra8 {[%clk 0:00:09.1]} 34. a5 {[%clk 0:01:31.9]} 34...
bxa5 {[%clk 0:00:10]} 35. bxa5 {[%clk 0:01:32.2]} 35... Ra6 {[%clk 0:00:08.9]}
36. Bf1 {[%clk 0:01:25]} 36... Ra7 {[%clk 0:00:07.6]} 37. h3 {[%clk 0:01:23]}
37... Rfa8 {[%clk 0:00:07.7]} 38. a6 {[%clk 0:01:23.6]} 38... Be8 {[%clk
0:00:02.7]} 39. Qe1 {[%clk 0:01:23.4]} 39... Bd7 {[%clk 0:00:03]} 40. Nf3 {[%clk
0:01:20.8]} 40... Bc8 {[%clk 0:00:03]} 41. Ng5 {[%clk 0:01:14.8]} 1-0

[Event "Early-Titled-Tuesday-Blitz-February-20-2024"]
[Site "Chess.com"]
[Date "2024.02.20"]
[Round "3"]
[White "Muracle"]
[Black "ajedrez-facil"]
[Result "1/2-1/2"]
[WhiteElo "2472"]
[BlackElo "2233"]
[TimeControl "180+1"]
[EndTime "8:27:55 PST"]
[Termination "Game drawn by repetition"]

1. d4 {[%clk 0:02:59.5]} 1... d5 {[%clk 0:02:51.9]} 2. Nf3 {[%clk 0:02:59.7]}
2... Nf6 {[%clk 0:02:51.7]} 3. g3 {[%clk 0:03:00.4]} 3... c6 {[%clk 0:02:52.1]}
4. Bg2 {[%clk 0:03:00.9]} 4... Bf5 {[%clk 0:02:52.6]} 5. O-O {[%clk 0:03:01.4]}
5... e6 {[%clk 0:02:53.1]} 6. c4 {[%clk 0:03:01.8]} 6... Bg6 {[%clk 0:02:51.9]}
7. Qb3 {[%clk 0:03:01.3]} 7... Qb6 {[%clk 0:02:51.5]} 8. c5 {[%clk 0:03:01.5]}
8... Qxb3 {[%clk 0:02:51.5]} 9. axb3 {[%clk 0:03:02.4]} 9... Nbd7 {[%clk
0:02:48.6]} 10. Nc3 {[%clk 0:03:02]} 10... Be7 {[%clk 0:02:48.8]} 11. b4 {[%clk
0:03:02.2]} 11... O-O {[%clk 0:02:47]} 12. Bf4 {[%clk 0:03:00.3]} 12... a6
{[%clk 0:02:46.6]} 13. Nd2 {[%clk 0:02:59.1]} 13... Rfe8 {[%clk 0:02:41.7]} 14.
Nb3 {[%clk 0:02:55.2]} 14... Bd8 {[%clk 0:02:39]} 15. Bd6 {[%clk 0:02:55.7]}
15... e5 {[%clk 0:02:35.5]} 16. Rfe1 {[%clk 0:02:45]} 16... exd4 {[%clk
0:02:32.7]} 17. Nxd4 {[%clk 0:02:45.9]} 17... Ne4 {[%clk 0:02:30.6]} 18. Nxe4
{[%clk 0:02:45.1]} 18... Bxe4 {[%clk 0:02:31.5]} 19. f3 {[%clk 0:02:44.3]} 19...
Bg6 {[%clk 0:02:30.9]} 20. e4 {[%clk 0:02:43.7]} 20... dxe4 {[%clk 0:02:30.9]}
21. fxe4 {[%clk 0:02:44.6]} 21... Ne5 {[%clk 0:02:29.9]} 22. Rad1 {[%clk
0:02:35.6]} 22... Bf6 {[%clk 0:02:22.2]} 23. b3 {[%clk 0:02:32.2]} 23... Rad8
{[%clk 0:02:06.4]} 24. Nf5 {[%clk 0:02:30.1]} 24... Bxf5 {[%clk 0:02:03.7]} 25.
exf5 {[%clk 0:02:31]} 25... Ng4 {[%clk 0:01:55.6]} 26. Rxe8+ {[%clk 0:02:17.5]}
26... Rxe8 {[%clk 0:01:56.5]} 27. Bf4 {[%clk 0:02:13.6]} 27... Rd8 {[%clk
0:01:35.7]} 28. Rxd8+ {[%clk 0:01:44.7]} 28... Bxd8 {[%clk 0:01:34]} 29. h3
{[%clk 0:01:45.3]} 29... Nf6 {[%clk 0:01:31.9]} 30. Kf2 {[%clk 0:01:40.1]} 30...
Kf8 {[%clk 0:01:31.6]} 31. Ke3 {[%clk 0:01:35.6]} 31... Ke7 {[%clk 0:01:30]} 32.
g4 {[%clk 0:01:35.4]} 32... h6 {[%clk 0:01:28.9]} 33. Kd4 {[%clk 0:01:34.5]}
33... Kd7 {[%clk 0:01:28.8]} 34. Be5 {[%clk 0:01:33]} 34... Ne8 {[%clk
0:01:27.2]} 35. Bf1 {[%clk 0:01:29.1]} 35... Bf6 {[%clk 0:01:26.5]} 36. Bc4
{[%clk 0:01:28.6]} 36... Ke7 {[%clk 0:01:23.6]} 37. Ke4 {[%clk 0:01:25.4]} 37...
Bxe5 {[%clk 0:01:18.5]} 38. Kxe5 {[%clk 0:01:26.3]} 38... Nc7 {[%clk 0:01:13.3]}
39. h4 {[%clk 0:01:25.6]} 39... f6+ {[%clk 0:01:09.1]} 40. Kf4 {[%clk 0:01:25]}
40... Nb5 {[%clk 0:01:04.7]} 41. Bxb5 {[%clk 0:01:16.1]} 41... axb5 {[%clk
0:01:05.6]} 42. g5 {[%clk 0:01:15.9]} 42... hxg5+ {[%clk 0:00:57.1]} 43. hxg5
{[%clk 0:01:16.8]} 43... Kf7 {[%clk 0:00:55]} 44. Kg4 {[%clk 0:01:16.6]} 44...
Kg8 {[%clk 0:00:35]} 45. Kh4 {[%clk 0:01:12.9]} 45... Kh8 {[%clk 0:00:32.7]} 46.
Kg4 {[%clk 0:01:11.4]} 46... Kg8 {[%clk 0:00:33.1]} 47. Kf4 {[%clk 0:01:11.5]}
47... Kf7 {[%clk 0:00:31.6]} 48. Kg4 {[%clk 0:00:57.5]} 48... Kg8 {[%clk
0:00:31.1]} 1/2-1/2

[Event "Early-Titled-Tuesday-Blitz-February-20-2024"]
[Site "Chess.com"]
[Date "2024.02.20"]
[Round "3"]
[White "Jamal-Jamal-Jamal"]
[Black "thechesscorner64"]
[Result "1/2-1/2"]
[WhiteElo "2263"]
[BlackElo "2521"]
[TimeControl "180+1"]
[EndTime "8:27:55 PST"]
[Termination "Game drawn by repetition"]

1. d4 {[%clk 0:03:00.9]} 1... Nf6 {[%clk 0:02:56.5]} 2. f3 {[%clk 0:03:00.3]}
2... d5 {[%clk 0:02:55.3]} 3. e4 {[%clk 0:03:00.3]} 3... dxe4 {[%clk 0:02:43.7]}
4. fxe4 {[%clk 0:03:01.2]} 4... Nxe4 {[%clk 0:02:44]} 5. Nc3 {[%clk 0:03:01.1]}
5... Nxc3 {[%clk 0:02:44.1]} 6. bxc3 {[%clk 0:03:02]} 6... g6 {[%clk 0:02:44.5]}
7. Bc4 {[%clk 0:02:59.2]} 7... Bg7 {[%clk 0:02:44.5]} 8. Nf3 {[%clk 0:02:59.1]}
8... O-O {[%clk 0:02:43.3]} 9. O-O {[%clk 0:02:58.5]} 9... e6 {[%clk 0:02:38.6]}
10. Ng5 {[%clk 0:02:53.6]} 10... h6 {[%clk 0:02:34.7]} 11. Ne4 {[%clk
0:02:28.1]} 11... b6 {[%clk 0:02:29.8]} 12. Qf3 {[%clk 0:02:24.6]} 12... c6
{[%clk 0:02:17.9]} 13. Qh3 {[%clk 0:01:57.1]} 13... g5 {[%clk 0:02:07.9]} 14.
Bd3 {[%clk 0:01:34.9]} 14... f5 {[%clk 0:02:03.2]} 15. Ng3 {[%clk 0:01:22.3]}
15... Nd7 {[%clk 0:02:03.1]} 16. Nh5 {[%clk 0:01:10.5]} 16... Nf6 {[%clk
0:02:02.7]} 17. Nxg7 {[%clk 0:01:06.8]} 17... Kxg7 {[%clk 0:02:03.6]} 18. Rf2
{[%clk 0:00:54.3]} 18... Qd6 {[%clk 0:01:37]} 19. a4 {[%clk 0:00:50.4]} 19... c5
{[%clk 0:01:35.2]} 20. Bb2 {[%clk 0:00:39.4]} 20... Bb7 {[%clk 0:01:17.9]} 21.
dxc5 {[%clk 0:00:39.6]} 21... bxc5 {[%clk 0:01:17.4]} 22. c4 {[%clk 0:00:39.6]}
22... Rab8 {[%clk 0:01:02.9]} 23. Rxf5 {[%clk 0:00:37.8]} 23... exf5 {[%clk
0:00:52.3]} 24. Qxf5 {[%clk 0:00:38.7]} 24... Be4 {[%clk 0:00:35.5]} 25. Qxe4
{[%clk 0:00:22.6]} 25... Rxb2 {[%clk 0:00:32.1]} 26. Qg6+ {[%clk 0:00:23.1]}
26... Kh8 {[%clk 0:00:32.6]} 27. Qxh6+ {[%clk 0:00:22.6]} 27... Kg8 {[%clk
0:00:32.6]} 28. Qg6+ {[%clk 0:00:23.1]} 28... Kh8 {[%clk 0:00:32.1]} 29. Qh6+
{[%clk 0:00:16.3]} 29... Kg8 {[%clk 0:00:31.1]} 30. Qg6+ {[%clk 0:00:10.7]}
30... Kh8 {[%clk 0:00:31.5]} 31. Qh6+ {[%clk 0:00:11.1]} 1/2-1/2

[Event "Early-Titled-Tuesday-Blitz-February-20-2024"]
[Site "Chess.com"]
[Date "2024.02.20"]
[Round "3"]
[White "Carlitus2004"]
[Black "AmanteDeMoi"]
[Result "0-1"]
[WhiteElo "2373"]
[BlackElo "2603"]
[TimeControl "180+1"]
[EndTime "8:27:57 PST"]
[Termination "AmanteDeMoi won by checkmate"]

1. Nf3 {[%clk 0:03:00.9]} 1... g6 {[%clk 0:02:55.8]} 2. g3 {[%clk 0:02:58.4]}
2... Bg7 {[%clk 0:02:56]} 3. Bg2 {[%clk 0:02:59.1]} 3... e5 {[%clk 0:02:56.6]}
4. O-O {[%clk 0:02:57.9]} 4... e4 {[%clk 0:02:56.9]} 5. Ne1 {[%clk 0:02:58]}
5... d5 {[%clk 0:02:57.5]} 6. d3 {[%clk 0:02:58.6]} 6... exd3 {[%clk 0:02:58.4]}
7. exd3 {[%clk 0:02:46.7]} 7... Ne7 {[%clk 0:02:58.7]} 8. d4 {[%clk 0:02:45.1]}
8... O-O {[%clk 0:02:58.9]} 9. c3 {[%clk 0:02:45.6]} 9... c6 {[%clk 0:02:57.5]}
10. Bf4 {[%clk 0:02:44.5]} 10... Bf5 {[%clk 0:02:57.3]} 11. Nd2 {[%clk
0:02:44.2]} 11... Qd7 {[%clk 0:02:57.4]} 12. Ndf3 {[%clk 0:02:44.4]} 12... f6
{[%clk 0:02:53]} 13. Nd3 {[%clk 0:02:43.3]} 13... Bh3 {[%clk 0:02:52]} 14. Re1
{[%clk 0:02:42]} 14... Bxg2 {[%clk 0:02:51.8]} 15. Kxg2 {[%clk 0:02:42.9]} 15...
Nf5 {[%clk 0:02:49.1]} 16. Nc5 {[%clk 0:02:39]} 16... Qf7 {[%clk 0:02:49.1]} 17.
Ne6 {[%clk 0:02:37.6]} 17... Rc8 {[%clk 0:02:49.4]} 18. Qb3 {[%clk 0:02:22.8]}
18... g5 {[%clk 0:02:46.8]} 19. Bd2 {[%clk 0:02:14.4]} 19... g4 {[%clk
0:02:46.8]} 20. Ng1 {[%clk 0:02:10.4]} 20... Nd6 {[%clk 0:02:33.4]} 21. Bf4
{[%clk 0:01:54.5]} 21... Ne4 {[%clk 0:02:33.2]} 22. Nc5 {[%clk 0:01:54.7]} 22...
Nxc5 {[%clk 0:02:27.5]} 23. dxc5 {[%clk 0:01:55.6]} 23... Na6 {[%clk 0:02:28.2]}
24. Qa3 {[%clk 0:01:50.1]} 24... Bf8 {[%clk 0:02:27.7]} 25. b4 {[%clk
0:01:49.2]} 25... Re8 {[%clk 0:02:19.1]} 26. Qb2 {[%clk 0:01:44.7]} 26... Qg6
{[%clk 0:02:12.6]} 27. Qd2 {[%clk 0:01:41]} 27... Re4 {[%clk 0:02:11.7]} 28. Ne2
{[%clk 0:01:38.2]} 28... Rae8 {[%clk 0:02:11.2]} 29. Nd4 {[%clk 0:01:38.4]}
29... h5 {[%clk 0:02:03.4]} 30. Re3 {[%clk 0:01:19.7]} 30... Nb8 {[%clk
0:01:58.5]} 31. Rae1 {[%clk 0:01:18.9]} 31... Nd7 {[%clk 0:01:58.5]} 32. Qc2
{[%clk 0:01:10.6]} 32... f5 {[%clk 0:01:57.1]} 33. Nb3 {[%clk 0:01:02.9]} 33...
h4 {[%clk 0:01:38.1]} 34. Nd2 {[%clk 0:01:01.4]} 34... h3+ {[%clk 0:01:37.9]}
35. Kg1 {[%clk 0:01:01.7]} 35... Nf6 {[%clk 0:00:56.4]} 36. Nxe4 {[%clk
0:00:46.5]} 36... fxe4 {[%clk 0:00:57.3]} 37. R3e2 {[%clk 0:00:19.1]} 37... Qf5
{[%clk 0:00:57.3]} 38. Be3 {[%clk 0:00:13.9]} 38... Qf3 {[%clk 0:00:55.6]} 39.
Bd4 {[%clk 0:00:13.4]} 39... Qg2# {[%clk 0:00:55.2]} 0-1